bitfinex/quotes_SOLUSD_20251006
["timestamp","ask_amount","ask_price","bid_price","bid_amount"]
[1759762569424,10.87647521,233.32,233.21,30.38]
[1759762569425,0.68,233.31,233.23,0.69]
[1759762570404,16.97521761,233.3,233.23,0.69]
[1759762570602,0.68,233.29,233.2,4.37940466]
[1759762570821,0.68,233.28,233.21,0.69]
[1759762572536,4.28687786,233.27,233.21,0.69]
[1759762572709,4.28666143,233.29,233.21,0.69]
[1759762573118,15.6829373,233.29,233.21,0.69]
[1759762573318,15.6829373,233.29,233.22,0.69]
[1759762573523,15.6829373,233.29,233.2,3.37940466]
[1759762573722,0.68,233.28,233.2,3.37940466]
[1759762574025,0.68,233.27,233.2,0.69]
[1759762574214,31.06,233.27,233.2,0.69]
[1759762574420,15.00471575,233.26,233.18,0.69]
[1759762574940,0.68,233.25,233.18,0.69]
[1759762575723,10.87647521,233.23,233.16,4.76839863]
[1759762576028,30.38,233.22,233.16,0.69]
[1759762576329,0.68,233.21,233.14,0.69]
[1759762576741,30.38,233.2,233.14,0.69]
[1759762576909,30.38,233.19,233.14,0.69]
[1759762577110,30.38,233.19,233.09,4.70167321]
[1759762577309,0.68,233.18,233.1,0.69]
[1759762577611,4.28871638,233.17,233.1,0.69]
[1759762578616,4.94871638,233.17,233.1,0.67]
[1759762578815,30.38,233.16,233.1,0.67]
[1759762579012,31.04,233.16,233.1,0.67]
[1759762579520,31.04,233.16,233.08,0.67]
[1759762579710,35.32892522,233.16,233.08,0.67]
[1759762580638,30.38,233.15,233.08,0.67]
[1759762581345,1.97307446,233.13,233.03,4.76839863]
[1759762581634,0.66,233.12,233.04,0.67]
[1759762581938,36.64289471,233.11,233.01,0.67]
[1759762582232,0.66,233.1,232.98,3.36497019]
[1759762582539,31.04,233.09,233.0,0.67]
[1759762582724,0.66,233.09,233.0,0.67]
[1759762582933,30.38,233.08,233.0,0.67]
[1759762583236,0.66,233.07,232.99,21.47]
[1759762583442,31.04,233.07,232.99,21.47]
[1759762583619,0.66,233.07,232.99,21.47]
[1759762583812,15.01437089,233.11,232.98,3.36407199]
[1759762583813,0.66,233.09,233.0,0.67]
[1759762584017,30.38,233.06,233.0,0.67]
[1759762584238,31.04,233.06,232.98,24.83407199]
[1759762584447,31.04,233.06,232.98,4.03407199]
[1759762584739,0.66,233.06,232.99,0.67]
[1759762585039,30.38,233.05,232.99,0.67]
[1759762585412,31.04,233.05,232.98,24.16407199]
[1759762585628,31.04,233.05,232.97,0.67]
[1759762585830,0.66,233.04,232.97,20.8]
[1759762586017,0.66,233.03,232.97,20.8]
[1759762586425,30.38,233.02,232.98,0.67]
[1759762586621,30.38,233.03,232.98,0.67]
[1759762586828,0.66,233.08,232.98,0.67]
[1759762587040,30.38,233.07,232.98,0.67]
[1759762587235,31.04,233.07,232.98,0.67]
[1759762587739,31.04,233.07,232.96,20.8]
[1759762587740,4.29074058,233.06,232.96,21.47]
[1759762587928,0.66,233.05,232.96,21.47]
[1759762588132,0.66,233.04,232.96,20.8]
[1759762588611,0.66,233.03,232.96,20.8]
[1759762588815,30.38,233.02,232.96,21.47]
[1759762589030,30.38,233.02,232.96,0.67]
[1759762589240,0.66,233.03,232.96,0.67]
[1759762589417,30.38,233.02,232.96,0.67]
[1759762589617,30.38,233.02,232.92,12.88300088]
[1759762589618,10.87647521,233.01,232.92,12.88300088]
[1759762589930,31.04,233.0,232.92,0.67]
[1759762590234,30.38,232.99,232.92,0.67]
[1759762590453,30.38,232.98,232.92,0.67]
[1759762590636,1.97307446,233.04,232.92,0.67]
[1759762590944,0.66,233.01,232.92,0.67]
[1759762591329,4.29150308,233.02,232.92,4.96330693]
[1759762591632,30.38,233.01,232.93,0.67]
[1759762591836,0.66,233.0,232.93,0.67]
[1759762592226,0.66,233.0,232.92,0.67]
[1759762592520,30.38,232.99,232.92,0.67]
[1759762592843,0.66,232.98,232.92,0.67]
[1759762593231,10.87647521,233.06,232.92,0.67]
[1759762593232,30.38,232.97,232.92,4.96317587]
[1759762593425,0.66,233.02,232.93,0.67]
[1759762593618,30.38,233.01,232.93,0.67]
[1759762593946,30.38,233.0,232.93,11.39763816]
[1759762594348,0.66,232.99,232.91,0.67]
[1759762594839,0.66,232.99,232.92,4.293521]
[1759762595046,31.06,232.98,232.91,21.47]
[1759762595340,4.96239816,232.97,232.91,21.47]
[1759762595540,4.96239816,232.97,232.88,0.67]
[1759762595719,4.96239816,232.97,232.89,12.88576766]
[1759762595923,4.96239816,232.97,232.89,13.55576766]
[1759762596246,4.96239816,232.97,232.86,0.67]
[1759762596247,31.07,232.96,232.86,0.67]
[1759762596451,33.04307446,232.96,232.79,30.38]
[1759762596650,0.67,232.95,232.85,12.88742831]
[1759762596837,0.67,232.94,232.85,0.67]
[1759762597324,30.4,232.93,232.82,3.42171375]
[1759762597530,0.67,232.92,232.83,0.67]
[1759762599430,4.96342566,232.92,232.83,0.67]
[1759762600326,0.67,232.92,232.83,0.67]
[1759762600524,31.07,232.92,232.83,0.67]
[1759762600719,35.36333021,232.92,232.83,0.67]
[1759762601141,35.36333021,232.92,232.82,0.67]
[1759762601446,37.33640467,232.92,232.82,0.67]
[1759762602539,35.36333021,232.92,232.82,0.67]
[1759762602736,30.4,232.91,232.81,0.67]
[1759762602935,30.4,232.9,232.81,0.67]
[1759762603145,0.67,232.89,232.81,0.67]
[1759762603533,31.07,232.89,232.81,0.67]
[1759762603846,31.07,232.89,232.76,23.61015817]
[1759762603847,1.97307446,232.86,232.76,0.67]
[1759762604022,0.67,232.85,232.76,0.67]
[1759762604425,30.4,232.84,232.76,0.67]
[1759762604629,0.67,232.83,232.75,16.24477642]
[1759762605232,0.67,232.83,232.75,19.87113775]
[1759762605427,0.67,232.91,232.79,4.29571716]
[1759762605629,11.54647521,232.94,232.8,0.67]
[1759762605941,2.24032685,232.95,232.82,20.8]
[1759762606249,0.67,232.97,232.83,0.67]
[1759762606455,4.73307446,233.01,232.83,0.67]
[1759762606456,1.97307446,232.92,232.83,0.67]
[1759762606641,0.67,232.96,232.83,0.67]
[1759762606642,10.87647521,232.93,232.83,0.67]
[1759762606842,0.67,232.96,232.83,0.67]
[1759762606843,0.67,232.92,232.83,0.67]
[1759762607228,43.24954967,232.96,232.83,0.67]
[1759762607430,4.96320615,232.93,232.83,0.67]
[1759762607644,6.93628061,232.93,232.83,0.67]
[1759762607843,4.96320615,232.93,232.79,25.09563852]
[1759762608053,2.67307446,232.92,232.82,20.8]
[1759762608244,0.7,232.92,232.82,20.8]
[1759762608554,0.7,232.91,232.83,0.66]
[1759762608750,4.99314481,232.93,232.83,0.66]
[1759762609333,0.7,232.97,232.83,0.66]
[1759762609532,10.87647521,233.01,232.87,20.8]
[1759762609732,7.23173503,233.0,232.88,0.66]
[1759762610254,0.5,232.99,232.88,0.66]
[1759762610430,0.7,232.98,232.88,0.66]
[1759762611061,2.23988379,233.0,232.88,0.66]
[1759762611266,4.29067341,233.07,232.88,21.46]
[1759762611442,4.99067341,233.07,232.92,20.8]
[1759762611770,5.51151498,233.06,232.93,0.66]
[1759762611947,0.7,233.06,232.93,0.66]
[1759762612262,46.15563013,233.17,232.93,0.66]
[1759762612441,7.05020453,233.11,232.96,20.8]
[1759762612643,2.23868955,233.11,232.97,0.66]
[1759762612852,0.7,233.1,232.97,0.66]
[1759762613053,0.7,233.1,232.98,30.48]
[1759762613266,2.23866069,233.13,233.01,20.8]
[1759762613471,0.7,233.14,233.02,4.29147712]
[1759762613764,0.7,233.13,233.04,20.8]
[1759762613933,0.7,233.12,233.04,20.8]
[1759762614131,0.7,233.12,233.05,0.66]
[1759762614555,0.7,233.15,233.05,0.66]
[1759762615067,2.23822924,233.16,233.05,0.66]
[1759762615272,2.93822924,233.16,233.05,0.66]
[1759762615444,4.28908428,233.15,233.05,31.16]
[1759762615759,4.28908428,233.15,233.06,0.66]
[1759762616266,2.23822924,233.16,233.08,20.8]
[1759762616438,0.7,233.18,233.09,0.66]
[1759762616640,0.7,233.21,233.09,0.66]
[1759762616938,2.23767299,233.24,233.09,0.66]
[1759762617143,0.7,233.23,233.09,0.66]
[1759762617458,4.28798078,233.21,233.09,21.46]
[1759762617660,0.7,233.2,233.03,4.44714925]
[1759762617870,7.0973732,233.15,233.07,20.8]
[1759762618056,0.7,233.14,233.04,0.66]
[1759762618244,0.7,233.14,233.04,31.48]
[1759762618440,0.7,233.14,233.05,0.66]
[1759762619660,4.28945223,233.13,233.05,0.66]
[1759762620063,4.98785283,233.22,233.07,20.8]
[1759762620356,4.98785283,233.22,233.11,20.8]
[1759762620556,7.0973732,233.18,233.07,0.66]
[1759762620763,0.7,233.17,233.07,0.66]
[1759762621355,0.7,233.2,233.07,0.66]
[1759762621548,4.28834855,233.19,233.09,20.8]
[1759762621744,4.98834855,233.19,233.1,0.66]
[1759762622838,4.28834855,233.19,233.1,0.66]
[1759762623460,4.98834855,233.19,233.1,0.66]
[1759762623661,15.70921994,233.19,233.07,20.8]
[1759762623957,0.7,233.18,233.07,20.8]
[1759762624160,0.7,233.17,233.07,20.8]
[1759762624347,0.7,233.16,233.06,0.66]
[1759762624753,0.7,233.16,233.06,4.95072814]
[1759762625239,0.7,233.16,233.06,0.66]
[1759762625668,4.28908428,233.15,233.06,0.66]
[1759762627178,0.7,233.14,233.02,0.66]
[1759762627355,10.87647521,233.13,233.02,0.66]
[1759762627546,7.7973732,233.12,233.0,4.99748259]
[1759762627747,7.7973732,233.12,232.99,4.0983287]
[1759762627748,15.01501501,233.1,232.99,4.0983287]
[1759762627977,0.7,233.09,232.99,8.39031526]
[1759762628278,0.7,233.11,233.02,20.8]
[1759762628441,0.7,233.1,232.97,13.13776689]
[1759762628643,0.7,233.1,232.98,31.58]
[1759762628878,4.28980908,233.12,232.99,0.66]
[1759762629044,4.28980908,233.12,233.01,20.8]
[1759762629247,4.28980908,233.12,233.02,0.66]
[1759762629471,0.7,233.11,233.01,20.8]
[1759762629770,4.29018833,233.09,233.0,31.6]
[1759762630667,4.29018833,233.09,233.0,35.89181795]
[1759762630880,4.28990503,233.11,233.01,0.66]
[1759762631167,4.98990503,233.11,233.01,0.66]
[1759762631375,15.71445567,233.11,233.01,0.66]
[1759762632676,15.71445567,233.11,232.97,20.8]
[1759762632677,7.0973732,233.08,232.97,20.8]
[1759762632856,10.87647521,233.09,232.97,24.18665884]
[1759762633056,17.97384841,233.09,232.96,31.58]
[1759762633256,7.0973732,233.07,232.94,6.91995447]
[1759762633459,10.87647521,233.09,232.93,4.99748259]
[1759762633460,10.87647521,233.04,232.93,0.66]
[1759762633680,0.7,233.06,232.93,8.29701422]
[1759762633864,4.29092469,233.05,232.94,0.66]
[1759762634057,0.7,233.04,232.94,0.66]
[1759762634479,4.29092469,233.05,232.94,0.66]
[1759762634776,4.29092469,233.05,232.94,5.65748259]
[1759762634965,4.29092469,233.05,232.95,0.66]
[1759762635157,10.87647521,233.04,232.94,4.99748259]
[1759762635354,7.0973732,233.07,232.95,0.66]
[1759762635355,4.99083345,233.06,232.95,0.66]
[1759762636284,4.99083345,233.06,232.95,4.95275565]
[1759762636285,15.7176849,233.06,232.95,4.95275565]
[1759762636780,15.7176849,233.06,232.96,0.66]
[1759762637170,22.8150581,233.06,232.96,0.66]
[1759762638761,10.87647521,233.05,232.94,35.97748259]
[1759762638961,0.72,233.04,232.93,31.64]
[1759762639185,0.72,233.03,232.93,31.64]
[1759762639554,7.0973732,233.04,232.93,31.64]
[1759762639784,0.72,233.02,232.93,30.98]
[1759762639966,4.2916613,233.01,232.93,30.98]
[1759762640167,0.72,233.0,232.93,30.98]
[1759762640570,15.02081455,233.01,232.91,20.8]
[1759762640762,0.72,232.99,232.89,0.66]
[1759762641477,7.0973732,232.98,232.88,4.99748259]
[1759762641667,0.72,232.97,232.86,0.66]
[1759762642063,4.29258241,232.96,232.86,4.95440644]
[1759762642268,0.72,232.97,232.87,0.66]
[1759762642968,0.72,233.01,232.89,20.8]
[1759762643169,0.72,233.01,232.9,0.66]
[1759762644184,4.29184549,233.0,232.9,25.75363322]
[1759762644361,4.29184549,233.0,232.91,0.66]
[1759762644561,5.01184549,233.0,232.91,0.66]
[1759762644784,4.29167111,233.01,232.91,0.66]
[1759762645083,0.72,233.03,232.91,0.66]
[1759762645591,0.72,233.03,232.93,20.8]
[1759762645775,4.29110882,233.04,232.94,0.66]
[1759762645972,5.01000429,233.1,232.95,15.0246834]
[1759762646186,5.01000429,233.1,232.96,31.58]
[1759762646487,0.72,233.09,232.97,0.66]
[1759762647585,4.29000429,233.1,232.97,0.66]
[1759762647781,5.01000429,233.1,232.97,0.66]
[1759762648191,5.01000429,233.1,232.98,4.29221392]
[1759762648384,0.72,233.13,233.01,20.8]
[1759762648573,0.72,233.13,233.02,0.66]
[1759762648891,7.0973732,233.2,233.06,20.8]
[1759762649193,0.72,233.19,233.07,0.66]
[1759762649373,12.10572175,233.19,233.07,0.66]
[1759762649771,22.82659314,233.19,233.07,0.66]
[1759762649984,10.87647521,233.18,233.07,0.66]
[1759762650278,12.10608958,233.17,233.07,0.66]
[1759762650692,2.23810344,233.16,233.07,0.66]
[1759762650898,2.23810344,233.16,233.07,21.46]
[1759762651199,2.23810344,233.16,233.08,0.66]
[1759762651791,2.95810344,233.16,233.08,0.66]
[1759762652292,7.24708712,233.16,233.08,4.95031556]
[1759762652666,2.23810344,233.16,233.08,4.29031556]
[1759762652872,7.24705225,233.16,233.08,0.66]
[1759762653081,7.8173732,233.15,233.05,4.23402041]
[1759762653265,0.72,233.14,233.05,0.66]
[1759762653472,7.8173732,233.14,233.03,3.57402041]
[1759762653677,7.0973732,233.12,233.01,35.17402041]
[1759762653879,7.8173732,233.11,233.01,0.66]
[1759762654302,7.8173732,233.11,233.0,29.20457056]
[1759762654303,4.29000429,233.1,233.0,29.20457056]
[1759762654504,5.01000429,233.1,233.0,32.54816432]
[1759762655198,0.72,233.1,233.0,32.54816432]
[1759762656410,0.69,233.09,233.01,0.67]
[1759762657203,4.28980033,233.12,233.01,0.67]
[1759762657385,0.69,233.13,233.03,20.8]
[1759762657694,0.69,233.15,233.04,0.67]
[1759762658477,4.28926825,233.14,233.05,20.8]
[1759762658694,0.69,233.13,233.05,20.8]
[1759762658905,4.28926825,233.14,233.06,0.67]
[1759762659605,4.97909188,233.15,233.06,4.96068995]
[1759762659902,0.69,233.15,233.07,0.67]
[1759762660515,2.23810344,233.16,233.07,0.67]
[1759762661583,7.0973732,233.23,233.08,15.01630341]
[1759762661789,0.69,233.22,233.09,31.57]
[1759762661989,2.23753412,233.22,233.12,20.8]
[1759762662198,2.23753412,233.22,233.13,21.47]
[1759762662493,2.23753412,233.22,233.14,0.67]
[1759762662692,2.23753412,233.22,233.15,30.92]
[1759762662891,2.23753412,233.22,233.16,0.67]
[1759762663114,0.69,233.27,233.16,0.67]
[1759762663417,0.69,233.27,233.18,20.8]
[1759762663620,0.69,233.27,233.19,4.95834855]
[1759762663921,4.9769215,233.27,233.19,0.67]
[1759762664415,0.69,233.27,233.19,0.67]
[1759762665312,4.9768938,233.27,233.18,30.9]
[1759762665539,0.69,233.26,233.18,30.9]
[1759762665731,4.28724544,233.25,233.18,30.9]
[1759762665899,0.69,233.24,233.12,5.43839863]
[1759762666217,0.69,233.23,233.12,21.47]
[1759762666407,0.69,233.22,233.13,51.7]
[1759762666925,0.69,233.22,233.14,0.67]
[1759762667797,4.28798078,233.21,233.14,0.67]
[1759762668221,4.28798078,233.21,233.14,4.95926175]
[1759762668594,4.28798078,233.21,233.14,31.55]
[1759762668903,0.69,233.22,233.14,35.83923528]
[1759762669109,6.52446854,233.25,233.15,0.72]
[1759762669323,2.23720426,233.25,233.15,0.72]
[1759762669524,0.69,233.24,233.15,0.72]
[1759762669940,0.69,233.24,233.16,4.28890032]
[1759762670110,2.23720426,233.25,233.17,0.72]
[1759762670310,6.52445919,233.25,233.17,0.72]
[1759762670548,0.69,233.24,233.17,0.72]
[1759762670912,6.52445919,233.25,233.17,0.72]
[1759762671417,2.23720426,233.25,233.17,0.72]
[1759762671622,4.97706747,233.26,233.17,0.72]
[1759762672018,4.97706747,233.26,233.18,4.28853246]
[1759762672240,4.97706747,233.26,233.18,5.00853246]
[1759762673039,0.69,233.25,233.18,5.00853246]
[1759762673237,0.69,233.25,233.18,0.72]
[1759762674231,0.69,233.25,233.18,5.00843621]
[1759762674733,4.9768841,233.27,233.19,31.54]
[1759762674928,2.23694141,233.28,233.2,0.72]
[1759762675136,0.69,233.32,233.21,51.62]
[1759762675322,2.92659976,233.32,233.22,0.72]
[1759762675829,7.21256575,233.32,233.22,0.72]
[1759762676034,7.21256575,233.32,233.23,4.28761308]
[1759762676233,2.92659976,233.32,233.23,4.28761308]
[1759762676619,2.92659976,233.32,233.24,0.72]
[1759762676839,7.21266713,233.32,233.24,0.72]
[1759762677341,4.97606737,233.32,233.24,0.72]
[1759762677540,4.97606737,233.32,233.21,51.62]
[1759762677541,12.07344057,233.32,233.21,0.72]
[1759762677719,12.07344057,233.32,233.22,30.8]
[1759762678046,0.69,233.31,233.22,30.8]
[1759762678228,0.69,233.3,233.22,35.08776142]
[1759762678928,0.69,233.3,233.23,0.72]
[1759762680244,4.28651035,233.29,233.22,30.8]
[1759762680440,0.69,233.28,233.22,30.8]
[1759762680643,0.69,233.27,233.17,0.72]
[1759762680941,0.69,233.27,233.15,0.72]
[1759762680942,4.79941654,233.25,233.15,0.72]
[1759762681147,0.69,233.24,233.15,0.72]
[1759762681618,0.69,233.26,233.15,0.72]
[1759762682247,4.28724544,233.25,233.16,4.28890032]
[1759762682546,4.28724544,233.25,233.17,0.72]
[1759762682924,4.97706291,233.26,233.17,21.52]
[1759762683428,0.69,233.3,233.21,20.8]
[1759762683629,0.69,233.3,233.22,0.72]
[1759762683830,6.52252774,233.32,233.21,20.8]
[1759762683831,0.69,233.29,233.21,20.8]
[1759762684049,0.69,233.28,233.2,30.82]
[1759762684245,4.28706164,233.26,233.19,20.8]
[1759762684454,4.28706164,233.26,233.14,5.00926825]
[1759762684455,4.79941654,233.24,233.14,5.00926825]
[1759762684629,4.28706164,233.26,233.15,30.82]
[1759762684630,0.69,233.23,233.15,30.82]
[1759762684830,0.69,233.22,233.15,30.82]
[1759762685556,0.69,233.22,233.15,31.54]
[1759762685745,4.28798078,233.21,233.15,0.72]
[1759762686146,4.28798078,233.21,233.14,51.64]
[1759762686343,0.69,233.2,233.13,30.82]
[1759762686547,0.69,233.2,233.13,31.54]
[1759762687554,4.28834855,233.19,233.13,31.52]
[1759762687853,4.97834855,233.19,233.11,0.72]
[1759762688069,4.97834855,233.19,233.12,30.8]
[1759762688950,21.59484962,233.25,233.13,0.72]
[1759762689153,0.69,233.23,233.13,0.72]
[1759762689934,0.69,233.23,233.14,4.28926825]
[1759762689935,4.97774623,233.23,233.14,4.28926825]
[1759762690162,4.28774623,233.23,233.15,0.72]
[1759762690744,0.69,233.24,233.15,21.52]
[1759762690948,0.69,233.24,233.16,0.72]
[1759762691151,4.9774719,233.24,233.16,0.72]
[1759762692146,4.9774719,233.24,233.16,5.00883366]
[1759762692344,4.9774719,233.24,233.16,0.72]
[1759762692847,15.69604504,233.24,233.16,0.72]
[1759762693441,4.9774719,233.24,233.16,0.72]
[1759762694055,4.9774719,233.24,233.15,20.8]
[1759762694257,0.69,233.23,233.15,20.8]
[1759762694463,0.69,233.22,233.14,0.72]
[1759762695258,0.69,233.22,233.14,5.0092664]
[1759762695652,0.69,233.22,233.15,0.72]
[1759762695846,0.69,233.24,233.15,0.72]
[1759762696242,4.28761308,233.23,233.15,0.72]
[1759762696560,0.69,233.22,233.15,0.72]
[1759762696972,0.69,233.22,233.15,5.00905841]
[1759762697664,4.28761308,233.23,233.16,0.72]
[1759762698062,4.28761308,233.23,233.16,5.00882296]
[1759762698669,4.28761308,233.23,233.17,0.71]
[1759762699466,4.97743791,233.24,233.17,0.71]
[1759762700452,4.97743791,233.24,233.17,4.99871596]
[1759762700790,0.69,233.31,233.18,0.71]
[1759762701084,0.69,233.31,233.21,4.76839863]
[1759762701261,0.69,233.3,233.22,0.71]
[1759762701444,0.69,233.3,233.21,4.76839863]
[1759762701644,4.2861429,233.31,233.2,30.74]
[1759762701645,5.48941654,233.29,233.2,30.74]
[1759762701864,0.69,233.28,233.19,31.45]
[1759762702166,2.23654193,233.32,233.19,31.45]
[1759762702167,4.28706164,233.26,233.19,31.45]
[1759762702379,0.69,233.27,233.2,0.71]
[1759762703255,4.97696504,233.27,233.2,0.71]
[1759762703572,0.69,233.29,233.2,4.99800726]
[1759762703773,4.2861429,233.31,233.21,0.71]
[1759762704067,2.23654193,233.32,233.21,0.71]
[1759762704068,2.23654193,233.32,233.24,20.8]
[1759762704275,0.69,233.31,233.25,36.23839863]
[1759762704454,2.23654193,233.32,233.25,31.47]
[1759762704660,2.23654193,233.32,233.25,0.71]
[1759762704859,0.69,233.31,233.25,0.71]
[1759762705068,2.23654193,233.32,233.25,0.71]
[1759762705256,6.52250369,233.32,233.25,0.71]
[1759762705572,7.21250369,233.32,233.25,0.71]
[1759762705759,17.92740168,233.32,233.23,56.32839863]
[1759762705962,0.69,233.31,233.23,55.84759824]
[1759762706168,6.52250369,233.32,233.24,0.71]
[1759762706349,2.23654193,233.32,233.24,0.71]
[1759762706660,2.23654193,233.32,233.24,5.47839863]
[1759762706840,2.23654193,233.32,233.25,0.71]
[1759762707748,2.23654193,233.32,233.26,4.28706164]
[1759762707949,6.52251781,233.32,233.26,4.28706164]
[1759762708260,2.23654193,233.32,233.27,0.71]
[1759762708469,0.69,233.34,233.28,0.71]
[1759762709368,4.97560429,233.34,233.28,0.71]
[1759762709951,4.97560429,233.34,233.27,7.73429512]
[1759762710254,4.97560429,233.34,233.27,4.28684533]
[1759762710458,4.97560429,233.34,233.27,4.99684533]
[1759762710846,4.28538699,233.36,233.27,4.28684533]
[1759762711058,0.69,233.37,233.29,20.8]
[1759762711371,0.69,233.37,233.28,0.71]
[1759762711372,2.23597562,233.35,233.3,0.71]
[1759762711548,2.23597562,233.35,233.31,0.71]
[1759762711869,2.23597562,233.35,233.28,56.28839863]
[1759762712071,2.23597562,233.35,233.31,4.99606552]
[1759762712968,2.23597562,233.35,233.32,0.71]
[1759762714076,0.69,233.37,233.31,25.08611874]
[1759762714247,0.69,233.36,233.3,3.59101766]
[1759762714457,0.69,233.35,233.26,3.59101766]
[1759762714770,4.79941654,233.33,233.25,4.30101766]
[1759762715079,0.69,233.32,233.25,0.71]
[1759762715656,0.69,233.32,233.25,4.9972409]
[1759762715857,0.69,233.32,233.26,20.8]
[1759762716056,0.71,233.34,233.26,21.5]
[1759762716261,4.28540818,233.35,233.26,21.5]
[1759762716456,0.71,233.34,233.26,21.5]
[1759762716664,0.71,233.33,233.26,21.5]
[1759762717875,0.71,233.33,233.26,25.78697205]
[1759762718090,4.28540818,233.35,233.27,8.57779718]
[1759762718277,4.28540818,233.35,233.27,4.29101766]
[1759762718464,0.71,233.34,233.27,0.7]
[1759762718880,0.71,233.34,233.27,4.98687283]
[1759762719884,0.71,233.34,233.27,0.7]
[1759762720379,4.28577551,233.33,233.27,0.7]
[1759762720965,5.50941654,233.32,233.24,3.59101766]
[1759762721166,5.50941654,233.32,233.24,20.8]
[1759762721167,0.71,233.31,233.24,20.8]
[1759762721365,0.71,233.3,233.24,20.8]
[1759762721568,1.97486148,233.31,233.24,20.8]
[1759762721569,0.71,233.29,233.24,20.8]
[1759762721765,15.00021428,233.33,233.24,20.8]
[1759762721977,2.68486148,233.32,233.24,20.8]
[1759762722173,4.28651035,233.29,233.24,20.8]
[1759762722472,4.28651035,233.29,233.24,21.5]
[1759762722977,2.23660628,233.3,233.24,21.5]
[1759762723179,6.52294042,233.3,233.23,0.7]
[1759762723380,7.23294042,233.3,233.23,0.7]
[1759762724177,7.23294042,233.3,233.23,4.29101766]
[1759762724383,7.23294042,233.3,233.24,3.59101766]
[1759762724770,2.23660628,233.3,233.24,3.59101766]
[1759762724966,0.71,233.39,233.25,55.75101766]
[1759762725171,0.71,233.39,233.28,24.39101766]
[1759762725386,0.71,233.39,233.26,0.7]
[1759762725387,0.71,233.39,233.3,3.59101766]
[1759762725597,0.71,233.39,233.31,0.7]
[1759762726193,0.71,233.39,233.32,4.28595919]
[1759762726487,4.99427859,233.42,233.33,0.7]
[1759762727069,15.70458619,233.42,233.33,0.7]
[1759762727265,4.79571082,233.4,233.3,5.30040519]
[1759762727465,0.71,233.39,233.29,20.8]
[1759762727661,5.50571082,233.38,233.29,21.5]
[1759762727869,0.71,233.37,233.29,20.8]
[1759762728072,0.68,233.36,233.28,20.8]
[1759762728276,4.28540818,233.35,233.28,25.08658399]
[1759762728481,0.68,233.34,233.27,4.29101766]
[1759762728685,0.68,233.34,233.27,25.09101766]
[1759762729189,0.68,233.34,233.27,25.78682815]
[1759762729390,0.68,233.34,233.27,4.98682815]
[1759762730391,4.96574875,233.34,233.27,4.98682815]
[1759762730865,4.96574875,233.34,233.27,0.7]
[1759762731066,15.67972835,233.34,233.26,3.59101766]
[1759762731395,0.68,233.33,233.26,0.7]
[1759762731567,0.68,233.33,233.27,0.7]
[1759762732192,15.16188339,233.35,233.27,4.98679023]
[1759762732483,15.84188339,233.35,233.27,4.98679023]
[1759762732996,0.68,233.34,233.26,3.59101766]
[1759762733193,0.68,233.33,233.26,3.59101766]
[1759762734209,4.28430658,233.41,233.32,3.59101766]
[1759762734373,0.68,233.4,233.34,20.8]